bitfinex/quotes_BTCUSD_20241103
["timestamp","ask_amount","ask_price","bid_price","bid_amount"]
[1730645291276,0.43756628,67917.0,67916.0,0.00363]
[1730645291482,0.44260751,67917.0,67916.0,0.00263]
[1730645291696,0.42860751,67917.0,67916.0,0.00263]
[1730645291903,0.42860751,67917.0,67900.0,0.005]
[1730645291904,0.005,67902.0,67900.0,0.005]
[1730645292108,0.18694398,67901.0,67900.0,0.005]
[1730645292532,0.33274102,67901.0,67900.0,0.005]
[1730645293145,0.60151996,67901.0,67900.0,0.006]
[1730645293359,0.58429702,67901.0,67900.0,0.006]
[1730645293530,0.58429702,67901.0,67896.0,0.001632]
[1730645293531,0.152281,67897.0,67896.0,0.001632]
[1730645293733,0.36417163,67897.0,67896.0,0.001632]
[1730645293976,0.34196686,67897.0,67896.0,0.001632]
[1730645294421,0.4927926,67897.0,67896.0,0.001632]
[1730645294616,0.49274074,67897.0,67896.0,0.001632]
[1730645295067,0.71933102,67897.0,67896.0,0.001632]
[1730645295277,0.308084,67896.0,67878.0,0.22159028]
[1730645295480,0.497718,67896.0,67878.0,0.22159028]
[1730645295706,0.157307,67885.0,67878.0,0.22159028]
[1730645295915,0.573841,67885.0,67878.0,0.22159028]
[1730645296333,0.573841,67885.0,67875.0,0.000833]
[1730645296537,1.26499721,67885.0,67875.0,0.000833]
[1730645296754,1.26699721,67885.0,67875.0,0.000833]
[1730645296981,0.162327,67876.0,67875.0,0.000833]
[1730645297163,0.152333,67873.0,67872.0,0.22163028]
[1730645297367,0.341967,67873.0,67872.0,0.22163028]
[1730645297570,0.341967,67873.0,67872.0,4e-05]
[1730645298347,0.346967,67873.0,67872.0,4e-05]
[1730645298992,0.672567,67873.0,67872.0,4e-05]
[1730645299192,0.87869274,67873.0,67872.0,4e-05]
[1730645299592,0.86469274,67873.0,67872.0,4e-05]
[1730645300003,0.89269274,67873.0,67872.0,4e-05]
[1730645300170,0.87869274,67873.0,67872.0,4e-05]
[1730645300617,0.86469274,67873.0,67872.0,4e-05]
[1730645300750,0.87869274,67873.0,67872.0,4e-05]
[1730645301387,0.86469274,67873.0,67872.0,4e-05]
[1730645301626,0.89269274,67873.0,67872.0,4e-05]
[1730645301859,0.477867,67873.0,67872.0,4e-05]
[1730645302346,0.496867,67873.0,67872.0,4e-05]
[1730645302570,0.482867,67873.0,67872.0,4e-05]
[1730645302787,0.468867,67873.0,67872.0,4e-05]
[1730645303031,0.482867,67873.0,67872.0,4e-05]
[1730645303281,0.61274483,67873.0,67872.0,4e-05]
[1730645303527,0.86274483,67873.0,67872.0,4e-05]
[1730645304019,0.61274483,67873.0,67872.0,4e-05]
[1730645304277,0.62674483,67873.0,67872.0,4e-05]
[1730645304531,0.491867,67873.0,67872.0,4e-05]
[1730645304788,0.369967,67873.0,67872.0,4e-05]
[1730645305073,0.355967,67873.0,67872.0,4e-05]
[1730645305307,0.369967,67873.0,67872.0,4e-05]
[1730645305812,0.355967,67873.0,67872.0,4e-05]
[1730645306034,0.369967,67873.0,67872.0,4e-05]
[1730645306276,0.364967,67873.0,67872.0,4e-05]
[1730645306743,0.36484232,67873.0,67872.0,4e-05]
[1730645307205,0.32113004,67873.0,67872.0,4e-05]
[1730645307977,0.51067204,67873.0,67872.0,4e-05]
[1730645308220,0.51567204,67873.0,67872.0,4e-05]
[1730645308451,0.152336,67872.0,67871.0,0.00082653]
[1730645308672,0.29313304,67872.0,67871.0,0.00082653]
[1730645309405,0.43895878,67872.0,67871.0,0.00082653]
[1730645309932,0.47195878,67872.0,67871.0,0.00082653]
[1730645310207,0.51567896,67872.0,67871.0,0.00082653]
[1730645310659,0.62067896,67872.0,67871.0,0.00082653]
[1730645310894,0.147355,67863.0,67862.0,0.000833]
[1730645311134,0.33687222,67863.0,67862.0,0.000833]
[1730645312049,0.29315204,67863.0,67862.0,0.000833]
[1730645312281,0.33685938,67863.0,67862.0,0.000833]
[1730645312708,0.19106234,67863.0,67862.0,0.000833]
[1730645312925,0.05570734,67863.0,67862.0,0.14819]
[1730645314021,0.05070734,67863.0,67862.0,0.14819]
[1730645314226,0.19806234,67863.0,67862.0,0.000833]
[1730645314645,0.04370734,67863.0,67862.0,0.14819]
[1730645315005,0.04470734,67863.0,67862.0,0.14819]
[1730645315267,0.04370734,67863.0,67862.0,0.14819]
[1730645315639,0.07185487,67863.0,67862.0,0.14819]
[1730645316070,0.51625828,67873.0,67862.0,0.14819]
[1730645316071,0.51625828,67873.0,67865.0,0.147351]
[1730645316259,0.04378971,67872.0,67865.0,0.147351]
[1730645316483,0.04378971,67871.0,67865.0,0.147351]
[1730645316713,0.147343,67869.0,67865.0,0.147351]
[1730645316866,0.04378971,67868.0,67865.0,0.147351]
[1730645317069,0.04378971,67867.0,67862.0,0.002833]
[1730645317311,0.02217319,67863.0,67862.0,0.002833]
[1730645317473,0.19114471,67863.0,67862.0,0.002833]
[1730645317677,0.19114471,67863.0,67862.0,0.000833]
[1730645318280,0.04478971,67863.0,67862.0,0.005833]
[1730645318661,0.19214471,67863.0,67862.0,0.005833]
[1730645318956,0.19114471,67863.0,67862.0,0.000833]
[1730645319371,0.1829233,67863.0,67862.0,0.000833]
[1730645319595,0.32772034,67863.0,67862.0,0.000833]
[1730645319804,0.29315204,67863.0,67862.0,0.000833]
[1730645319983,0.3327794,67863.0,67862.0,0.000833]
[1730645320386,0.3277794,67863.0,67862.0,0.000833]
[1730645320884,0.3337794,67863.0,67862.0,0.000833]
[1730645321102,0.3387794,67863.0,67862.0,0.000833]
[1730645321311,0.04062736,67863.0,67862.0,0.000833]
[1730645321732,0.19498236,67863.0,67862.0,0.000833]
[1730645321930,0.18798236,67863.0,67862.0,0.000833]
[1730645322064,0.18198236,67863.0,67862.0,0.000833]
[1730645322286,0.18598236,67863.0,67862.0,0.000833]
[1730645322482,0.19098236,67863.0,67862.0,0.000833]
[1730645323064,0.03862736,67863.0,67862.0,0.14819]
[1730645323287,0.03462736,67863.0,67862.0,0.14819]
[1730645323549,0.0357834,67863.0,67862.0,0.14819]
[1730645323948,0.0347834,67863.0,67862.0,0.14819]
[1730645324396,0.0357834,67863.0,67862.0,0.15119]
[1730645325114,0.0387834,67863.0,67862.0,0.15119]
[1730645325342,0.0357834,67863.0,67862.0,0.15119]
[1730645325756,0.0357834,67863.0,67862.0,0.15319]
[1730645326330,0.0357834,67863.0,67862.0,0.1536102]
[1730645326798,0.0357834,67863.0,67862.0,0.1565572]
[1730645326801,0.0357834,67863.0,67862.0,0.1536102]
[1730645327661,0.0367834,67863.0,67862.0,0.1566102]
[1730645328105,0.0367834,67863.0,67862.0,0.0092532]
[1730645328106,0.20255154,67863.0,67862.0,0.0092532]
[1730645328505,0.1841384,67863.0,67862.0,0.0092532]
[1730645328923,0.1841384,67863.0,67862.0,0.0062532]
[1730645328924,0.32893544,67863.0,67862.0,0.0062532]
[1730645329137,0.32893544,67863.0,67862.0,0.0012532]
[1730645329328,0.33093544,67863.0,67862.0,0.0012532]
[1730645329773,0.32993544,67863.0,67862.0,0.0012532]
[1730645329997,0.33593544,67863.0,67862.0,0.0012532]
[1730645330191,0.37739103,67863.0,67862.0,0.0012532]
[1730645330481,0.37139103,67863.0,67862.0,0.0012532]
[1730645330628,0.36939103,67863.0,67862.0,0.0012532]
[1730645330770,0.33860763,67863.0,67862.0,0.0012532]
[1730645330965,0.38143133,67863.0,67862.0,0.0012532]
[1730645331223,0.33197574,67863.0,67862.0,0.0012532]
[1730645331644,0.33697574,67863.0,67862.0,0.0012532]
[1730645331884,0.32797574,67863.0,67862.0,0.0012532]
[1730645332092,0.33497574,67863.0,67862.0,0.0012532]
[1730645332366,0.42247574,67863.0,67862.0,0.0012532]
[1730645332543,0.42247574,67863.0,67852.0,0.000833]
[1730645332544,0.147377,67853.0,67852.0,0.000833]
[1730645332696,0.32799774,67853.0,67852.0,0.000833]
[1730645334112,0.34999774,67853.0,67852.0,0.000833]
[1730645334321,0.35499774,67853.0,67852.0,0.000833]
[1730645334494,0.46546724,67853.0,67852.0,0.000833]
[1730645334724,0.47882451,67853.0,67852.0,0.000833]
[1730645336317,0.60482451,67853.0,67852.0,0.000833]
[1730645337324,0.60982451,67853.0,67852.0,0.000833]
[1730645337952,0.70982451,67853.0,67852.0,0.000833]
[1730645338076,0.67509561,67853.0,67852.0,0.000833]
[1730645338276,0.70976002,67853.0,67852.0,0.000833]
[1730645339092,0.71176002,67853.0,67852.0,0.000833]
[1730645339378,0.71176002,67853.0,67843.0,4e-05]
[1730645339379,0.157396,67844.0,67843.0,4e-05]
[1730645339608,0.33785745,67844.0,67843.0,4e-05]
[1730645339808,0.46202314,67844.0,67843.0,4e-05]
[1730645340153,0.41965745,67844.0,67843.0,4e-05]
[1730645340524,0.42888409,67844.0,67843.0,4e-05]
[1730645340850,0.57470983,67844.0,67843.0,4e-05]
[1730645340996,0.54481878,67844.0,67843.0,4e-05]
[1730645341200,0.57466512,67844.0,67843.0,4e-05]
[1730645341596,0.60166512,67844.0,67843.0,4e-05]
[1730645341826,0.70166512,67844.0,67843.0,4e-05]
[1730645342185,0.68866512,67844.0,67843.0,4e-05]
[1730645342317,0.54283938,67844.0,67843.0,4e-05]
[1730645342516,0.55583938,67844.0,67843.0,4e-05]
[1730645342711,0.47403938,67844.0,67843.0,4e-05]
[1730645342921,0.36403938,67844.0,67843.0,4e-05]
[1730645343321,0.21824234,67844.0,67843.0,4e-05]
[1730645343673,0.06161974,67844.0,67843.0,0.147439]
[1730645343889,0.06161974,67844.0,67843.0,4e-05]
[1730645344323,0.027,67844.0,67843.0,4e-05]
[1730645344533,0.0615946,67844.0,67843.0,0.147439]
[1730645344736,0.02730561,67844.0,67843.0,0.147439]
[1730645344936,0.01330561,67844.0,67843.0,0.148439]
[1730645345317,0.01330561,67844.0,67843.0,0.00104]
[1730645345545,0.01330561,67844.0,67843.0,4e-05]
[1730645345691,0.01330561,67844.0,67843.0,0.147439]
[1730645345901,0.01530561,67844.0,67843.0,0.148439]
[1730645346316,0.01430561,67844.0,67843.0,0.147439]
[1730645346693,0.001,67844.0,67843.0,0.147439]
[1730645346875,0.01430683,67844.0,67843.0,4e-05]
[1730645347076,0.01430683,67844.0,67843.0,0.147439]
[1730645347278,0.01430683,67844.0,67843.0,4e-05]
[1730645347597,0.22159028,67852.0,67843.0,0.00204]
[1730645347799,0.01330905,67851.0,67845.0,0.294789]
[1730645348002,0.0133093,67850.0,67845.0,0.294789]
[1730645348206,0.0133093,67849.0,67848.0,0.147387]
[1730645348617,0.0133093,67849.0,67848.0,0.147388]
[1730645349035,0.36895528,67859.0,67845.0,0.294789]
[1730645349243,0.001638,67848.0,67845.0,0.294789]
[1730645349544,0.001638,67848.0,67847.0,0.14739]
[1730645350104,0.001638,67848.0,67847.0,0.15033756]
[1730645350310,0.001638,67848.0,67847.0,0.47078704]
[1730645350940,0.001638,67848.0,67847.0,0.32499]
[1730645351120,0.001638,67848.0,67847.0,0.14739]
[1730645351323,0.001638,67848.0,67843.0,0.000859]
[1730645351524,0.001638,67848.0,67846.0,0.147392]
[1730645351525,0.02964,67847.0,67846.0,0.147392]
[1730645351703,0.001638,67848.0,67847.0,0.14739]
[1730645351704,0.002638,67848.0,67847.0,0.14739]
[1730645352147,0.001638,67848.0,67847.0,0.14739]
[1730645352549,0.002638,67848.0,67847.0,0.15039]
[1730645352846,0.002638,67848.0,67847.0,0.14939]
[1730645353194,0.002638,67848.0,67847.0,0.15039]
[1730645353872,0.002638,67848.0,67847.0,0.25333747]
[1730645354284,0.002638,67848.0,67847.0,0.25133747]
[1730645354285,0.001638,67848.0,67847.0,0.25133747]
[1730645354543,0.001638,67848.0,67847.0,0.24839]
[1730645354747,0.001638,67848.0,67847.0,0.24939]
[1730645355165,0.001638,67848.0,67847.0,0.24739]
[1730645355366,0.001638,67848.0,67847.0,0.43848704]
[1730645355595,0.003638,67848.0,67847.0,0.44148704]
[1730645358001,0.003638,67848.0,67847.0,0.39618704]
[1730645359799,0.003638,67848.0,67847.0,0.25039]
[1730645360437,0.003638,67848.0,67847.0,0.39618704]
[1730645361927,0.003638,67848.0,67847.0,0.42918704]
[1730645362148,0.003638,67848.0,67847.0,0.51588418]
[1730645362363,0.003638,67848.0,67847.0,0.56075306]
[1730645362771,0.003638,67848.0,67847.0,0.582778]
[1730645362981,0.003638,67848.0,67847.0,0.7222605]
[1730645363195,0.003638,67848.0,67847.0,0.612338]
[1730645363421,0.003638,67848.0,67847.0,0.50720604]
[1730645363633,0.003638,67848.0,67847.0,0.251209]
[1730645363852,0.003638,67848.0,67847.0,0.151209]
[1730645364067,0.002638,67848.0,67847.0,0.149209]
[1730645364551,0.002638,67848.0,67847.0,0.150209]
[1730645364725,0.003638,67848.0,67847.0,0.010819]
[1730645364937,0.002638,67848.0,67847.0,0.008819]
[1730645365149,0.002638,67848.0,67847.0,0.002819]
[1730645365378,0.1955039,67848.0,67847.0,0.008819]
[1730645365866,0.1945039,67848.0,67847.0,0.002819]
[1730645366071,0.1945039,67848.0,67847.0,0.007819]
[1730645366222,0.1945039,67848.0,67847.0,0.002819]
[1730645366650,0.150026,67848.0,67847.0,0.002819]
[1730645366827,0.149026,67848.0,67847.0,0.000819]
[1730645367031,0.149026,67848.0,67847.0,0.004819]
[1730645367634,0.151026,67848.0,67847.0,0.000819]
[1730645367862,0.149026,67848.0,67847.0,0.000819]
[1730645368059,0.153026,67848.0,67847.0,0.000819]
[1730645368291,0.157026,67848.0,67847.0,0.000819]
[1730645368603,0.2276813,67848.0,67847.0,0.000819]
[1730645368930,0.157026,67848.0,67847.0,0.000819]
[1730645369362,0.30282304,67848.0,67847.0,0.000819]
[1730645371536,0.31616336,67848.0,67847.0,0.000819]
[1730645371990,0.40366336,67848.0,67847.0,0.000819]
[1730645372240,0.42500685,67848.0,67847.0,0.000819]
[1730645372479,0.58005692,67848.0,67847.0,0.000819]
[1730645373635,0.38632304,67848.0,67847.0,0.000819]
[1730645373869,0.42624343,67848.0,67847.0,0.000819]
[1730645374089,0.44724343,67848.0,67847.0,0.001819]
[1730645374513,0.42624343,67848.0,67847.0,0.000819]
[1730645374743,0.50977105,67848.0,67847.0,0.000819]
[1730645374952,0.52877105,67848.0,67847.0,0.001819]
[1730645375157,0.44524343,67848.0,67847.0,0.001819]
[1730645375586,0.56348393,67848.0,67847.0,0.000819]
[1730645375803,0.53124343,67848.0,67847.0,0.000819]
[1730645376033,0.157396,67844.0,67843.0,0.000859]
[1730645376251,0.60361343,67844.0,67843.0,0.000859]
[1730645376655,0.60161343,67844.0,67843.0,0.000859]
[1730645376863,0.60161343,67844.0,67835.0,0.000833]
[1730645376864,0.484914,67836.0,67835.0,0.000833]
[1730645377074,0.69683334,67836.0,67835.0,0.000833]
[1730645377307,0.81623196,67836.0,67835.0,0.000833]
[1730645377517,0.82545717,67836.0,67835.0,0.000833]
[1730645377764,1.19596162,67836.0,67835.0,0.000833]
[1730645377998,0.507429,67829.0,67828.0,0.000834]
[1730645378233,0.88991517,67829.0,67828.0,0.000834]
[1730645378460,0.01,67828.0,67827.0,0.000834]
[1730645378712,0.01,67828.0,67817.0,0.23047388]
[1730645378713,0.538953,67818.0,67817.0,0.23047388]
[1730645378936,0.71935672,67818.0,67817.0,0.23047388]
[1730645379140,0.71935672,67818.0,67817.0,0.0088836]
[1730645379376,0.96518246,67818.0,67817.0,0.0088836]
[1730645379625,0.97441034,67818.0,67817.0,0.0088836]
[1730645379896,0.97441034,67818.0,67802.0,0.22159028]
[1730645379897,0.152475,67808.0,67802.0,0.22159028]
[1730645380141,0.3115823,67808.0,67802.0,0.22159028]
[1730645380641,0.3115823,67808.0,67792.0,4e-05]
[1730645381164,0.3940823,67808.0,67796.0,0.22159028]
[1730645381364,0.55390804,67808.0,67807.0,0.001834]
[1730645381596,0.62413034,67808.0,67807.0,0.001834]
[1730645381859,0.62413034,67808.0,67807.0,0.000834]
[1730645381860,0.71513034,67808.0,67807.0,0.000834]
[1730645382083,0.77832325,67808.0,67807.0,0.001834]
[1730645382319,0.77355413,67808.0,67807.0,0.001834]
[1730645382540,0.78755413,67808.0,67807.0,0.001834]
[1730645383001,0.75236122,67808.0,67807.0,0.001834]
[1730645383275,0.60603548,67808.0,67807.0,0.001834]
[1730645383512,0.5968046,67808.0,67807.0,0.001834]
[1730645383790,0.5968046,67808.0,67807.0,0.000834]
[1730645384034,0.5828046,67808.0,67807.0,0.000834]
[1730645384273,0.5968046,67808.0,67807.0,0.001834]
[1730645384527,0.74263034,67808.0,67807.0,0.001834]
[1730645384966,0.75386122,67808.0,67807.0,0.001834]
[1730645385197,0.75186122,67808.0,67807.0,0.001834]
[1730645385426,0.74263034,67808.0,67807.0,0.001834]
[1730645385660,0.60603548,67808.0,67807.0,0.001834]
[1730645385910,0.5968046,67808.0,67807.0,0.001834]
[1730645387529,0.64163316,67808.0,67807.0,0.001834]
[1730645387773,0.6196171,67808.0,67807.0,0.001834]
[1730645388229,0.62884889,67808.0,67807.0,0.001834]
[1730645388489,0.97503312,67808.0,67807.0,0.001834]
[1730645388719,0.281981,67805.0,67792.0,4e-05]
[1730645388936,0.83935489,67805.0,67792.0,4e-05]
[1730645389382,0.83735489,67805.0,67792.0,4e-05]
[1730645389607,0.98518063,67805.0,67792.0,4e-05]
[1730645390097,0.99718063,67805.0,67792.0,4e-05]
[1730645391012,0.82835489,67805.0,67792.0,4e-05]
[1730645392011,0.85035361,67805.0,67792.0,4e-05]
[1730645392267,0.82835489,67805.0,67792.0,4e-05]
[1730645392477,0.8363608,67805.0,67792.0,4e-05]
[1730645392701,0.82385489,67805.0,67792.0,4e-05]
[1730645392902,0.83785489,67805.0,67792.0,4e-05]
[1730645393115,0.95568063,67805.0,67792.0,4e-05]
[1730645393324,0.95068063,67805.0,67792.0,4e-05]
[1730645393556,0.46285489,67805.0,67795.0,0.147502]
[1730645393801,0.44885489,67805.0,67796.0,0.1475]
[1730645393994,0.3396231,67805.0,67797.0,0.147498]
[1730645394196,0.3396231,67805.0,67794.0,0.295844]
[1730645394629,0.3396231,67805.0,67796.0,0.147499]
[1730645394833,0.3276231,67805.0,67794.0,0.000834]
[1730645395061,0.34785489,67805.0,67796.0,0.147499]
[1730645395256,0.49172891,67805.0,67794.0,0.000834]
[1730645395458,0.49172891,67805.0,67795.0,0.147502]
[1730645395669,0.49572891,67805.0,67795.0,0.147502]
[1730645395872,0.49572891,67805.0,67794.0,0.000834]
[1730645396096,0.49672891,67805.0,67794.0,0.000834]
[1730645396401,0.52977651,67805.0,67794.0,0.148339]
[1730645396626,0.48272891,67805.0,67794.0,0.148339]
[1730645396850,0.49372891,67805.0,67794.0,0.148339]
[1730645397071,0.50672891,67805.0,67794.0,0.000834]
[1730645397756,0.50204409,67805.0,67794.0,0.000834]
[1730645397986,0.50027507,67805.0,67794.0,0.000834]
[1730645398439,0.50627507,67805.0,67794.0,0.000834]
[1730645398924,0.49327507,67805.0,67794.0,0.000834]
[1730645399156,0.33694933,67805.0,67794.0,0.000834]
[1730645399361,0.34494933,67805.0,67794.0,0.000834]
[1730645400007,0.34794933,67805.0,67794.0,0.000834]
[1730645400428,0.35494933,67805.0,67794.0,0.000834]
[1730645400855,0.34794933,67805.0,67794.0,0.000834]
[1730645401067,0.49377507,67805.0,67794.0,0.000834]
[1730645401286,0.49377507,67805.0,67799.0,0.147494]
[1730645401287,0.33694933,67805.0,67799.0,0.147494]
[1730645401503,0.04367129,67805.0,67802.0,0.147488]
[1730645401724,0.04967129,67805.0,67800.0,0.294984]
[1730645401926,0.04967129,67805.0,67804.0,0.148317]
[1730645402135,0.05167129,67805.0,67804.0,0.148817]
[1730645402353,0.07381887,67805.0,67804.0,0.194617]
[1730645402565,0.07381887,67805.0,67804.0,0.36636323]
[1730645402566,0.05467129,67805.0,67804.0,0.36636323]
[1730645402783,0.06167129,67805.0,67804.0,0.36341404]
[1730645402994,0.04144031,67805.0,67804.0,0.46341404]
[1730645403207,0.22159028,67824.0,67820.0,0.223249]
[1730645403435,0.22159028,67824.0,67823.0,0.147942]
[1730645403657,0.00922655,67823.0,67820.0,0.0758]
[1730645403840,0.22159028,67831.0,67822.0,0.294889]
[1730645403841,0.02216718,67828.0,67822.0,0.294889]
[1730645404097,0.02216718,67828.0,67827.0,0.147933]
[1730645404303,0.02216718,67830.0,67829.0,0.147429]
[1730645404503,0.02216718,67832.0,67831.0,0.147425]
[1730645404704,0.02216718,67832.0,67829.0,0.294858]
[1730645404705,0.00922595,67832.0,67829.0,0.294858]
[1730645404831,0.00922595,67831.0,67830.0,0.147426]
[1730645405458,0.00922595,67831.0,67827.0,0.0005]
[1730645405818,0.00922595,67830.0,67826.0,0.0005]
[1730645406018,0.00922595,67829.0,67826.0,0.147935]
[1730645406225,0.00922595,67829.0,67824.0,0.29488]
[1730645406226,0.02216718,67833.0,67829.0,0.147427]
[1730645406467,0.00922586,67832.0,67830.0,0.147425]
[1730645406706,0.00922586,67832.0,67829.0,0.294859]
[1730645406707,0.02216718,67835.0,67829.0,0.294859]
[1730645406919,0.001,67831.0,67830.0,0.147426]
[1730645407144,0.001,67831.0,67828.0,0.0005]
[1730645407145,0.00922577,67831.0,67828.0,0.0005]
[1730645407349,0.00922577,67831.0,67827.0,0.147433]
[1730645407350,0.00922586,67831.0,67827.0,0.147433]
[1730645407558,0.147424,67832.0,67821.0,0.294889]
[1730645407559,0.00922586,67830.0,67829.0,0.147929]
[1730645407961,0.006,67831.0,67830.0,0.147427]
[1730645408126,0.01522568,67831.0,67830.0,0.147427]
[1730645408466,0.36900328,67837.0,67825.0,0.0005]
[1730645408467,0.22159028,67837.0,67825.0,0.0005]
[1730645408683,0.147427,67830.0,67829.0,0.001]
[1730645408894,0.00922575,67830.0,67822.0,0.22209028]
[1730645409129,0.147437,67826.0,67822.0,0.22209028]
[1730645409332,0.147437,67826.0,67822.0,0.0005]
[1730645409759,0.22159028,67830.0,67822.0,0.0005]
[1730645409972,0.22159028,67830.0,67823.0,0.294882]
[1730645409973,0.00922606,67829.0,67823.0,0.294882]
[1730645410176,0.00922606,67828.0,67823.0,0.147441]
[1730645410404,0.001,67826.0,67823.0,0.147441]
[1730645410614,0.001,67826.0,67822.0,0.0005]
[1730645410828,0.147442,67823.0,67822.0,0.0005]
[1730645411035,0.007,67826.0,67822.0,0.147943]
[1730645411275,0.00922669,67825.0,67822.0,0.0005]
[1730645411502,0.007,67826.0,67825.0,0.147938]
[1730645411746,0.001,67826.0,67825.0,0.147938]
[1730645411979,0.0092258,67836.0,67830.0,0.0005]
[1730645412221,0.1566428,67835.0,67830.0,0.0005]
[1730645412450,0.147422,67833.0,67830.0,0.0005]
[1730645412941,0.36900328,67837.0,67832.0,0.147422]
[1730645413186,0.36900328,67837.0,67830.0,0.0005]
[1730645413187,0.02977444,67836.0,67830.0,0.0005]
[1730645413424,0.147421,67833.0,67830.0,0.0005]
[1730645413681,0.02054888,67832.0,67831.0,0.147424]
[1730645415179,0.01283898,67832.0,67831.0,0.23187206]
[1730645415409,0.009,67833.0,67832.0,0.147423]
[1730645415677,0.02307726,67848.0,67835.0,0.005]
[1730645415678,0.22159028,67842.0,67835.0,0.005]
[1730645415915,0.22159028,67842.0,67841.0,0.147403]
[1730645416171,0.0128438,67842.0,67841.0,0.147403]
[1730645416440,0.001638,67848.0,67841.0,0.294803]
[1730645416721,0.001638,67848.0,67846.0,0.147392]
[1730645416722,0.03338043,67847.0,67846.0,0.147392]
[1730645417452,0.001638,67848.0,67847.0,0.14739]
[1730645417727,0.0350124,67848.0,67847.0,0.14739]
[1730645418005,0.001638,67848.0,67847.0,0.49768704]
[1730645418233,0.00167,67876.0,67870.0,0.14784]
[1730645418461,0.00167,67876.0,67870.0,0.17378625]
[1730645418730,0.00167,67876.0,67870.0,0.14784]
[1730645418950,0.00167,67876.0,67870.0,0.15078648]
[1730645419176,0.00167,67876.0,67870.0,0.14784]
[1730645420063,0.002636,67871.0,67870.0,0.32758338]
[1730645420307,0.001636,67871.0,67870.0,0.35648594]
[1730645420537,0.001636,67871.0,67870.0,0.31663704]
[1730645420762,0.001636,67871.0,67870.0,0.14784]
[1730645420982,0.001636,67871.0,67870.0,0.0005]
[1730645421215,0.001636,67871.0,67859.0,0.0005]
[1730645421439,0.294709,67864.0,67855.0,0.22209028]
[1730645421650,0.14579704,67870.0,67857.0,0.0005]
[1730645421909,0.147366,67858.0,67857.0,0.0005]
[1730645422115,0.14579704,67870.0,67857.0,0.0005]
[1730645422116,0.294694,67867.0,67857.0,0.0005]
[1730645422326,0.294702,67865.0,67859.0,0.008]
[1730645422534,0.147359,67862.0,67859.0,0.008]
[1730645422741,0.01281425,67861.0,67857.0,0.0005]
[1730645422956,0.147365,67859.0,67857.0,0.0005]
[1730645423167,0.01281425,67858.0,67857.0,0.0005]
[1730645423373,0.01281518,67858.0,67857.0,0.0005]
[1730645423581,0.14736,67861.0,67857.0,0.0005]
[1730645423796,0.22159028,67858.0,67854.0,0.0005]
[1730645424018,0.147381,67851.0,67850.0,0.0005]
[1730645424236,0.22159028,67865.0,67850.0,0.0005]
[1730645424237,0.147375,67854.0,67850.0,0.0005]
[1730645424444,0.147381,67852.0,67851.0,0.0005]
[1730645424647,0.147376,67854.0,67851.0,0.0005]
[1730645424864,0.0213742,67869.0,67863.0,0.0005]
[1730645425077,0.03332701,67868.0,67863.0,0.0005]
[1730645425294,0.14735,67866.0,67863.0,0.0005]
[1730645425506,0.00167,67876.0,67870.0,0.0005]
[1730645425739,0.03497632,67871.0,67870.0,0.0005]
[1730645426370,0.03497632,67871.0,67865.0,0.294701]
[1730645426371,0.03497632,67871.0,67869.0,0.0005]
[1730645426594,0.03497632,67871.0,67866.0,0.147348]
[1730645426595,0.03334032,67870.0,67866.0,0.147348]
[1730645426818,0.001636,67871.0,67859.0,0.0005]
[1730645426819,0.03334032,67869.0,67859.0,0.0005]
[1730645427084,0.147366,67858.0,67857.0,0.22209028]
[1730645427312,0.18070632,67858.0,67857.0,0.22209028]
[1730645427525,0.18070632,67858.0,67857.0,0.0005]
[1730645427736,0.29472,67861.0,67857.0,0.0005]
[1730645427963,0.0425767,67860.0,67857.0,0.0005]
[1730645428181,0.147366,67858.0,67857.0,0.0005]
[1730645428409,0.18994265,67858.0,67857.0,0.0015]
[1730645428615,0.04257665,67858.0,67857.0,0.0015]
[1730645428994,0.03335458,67858.0,67857.0,0.0015]
[1730645429194,0.03335458,67858.0,67857.0,0.0005]
[1730645429195,0.04257645,67858.0,67857.0,0.0005]
[1730645429676,0.03335458,67858.0,67857.0,0.147868]
[1730645429884,0.01282868,67858.0,67857.0,0.147868]
[1730645430088,0.03738541,67858.0,67857.0,0.147868]
[1730645430485,0.03738541,67858.0,67857.0,0.0005]
[1730645430804,0.004,67858.0,67857.0,0.0005]
[1730645431032,0.03740435,67858.0,67857.0,0.147868]
[1730645431232,0.03340446,67858.0,67857.0,0.148868]
[1730645431431,0.03740446,67858.0,67857.0,0.148868]
[1730645431711,0.03740446,67858.0,67857.0,0.147868]
[1730645431933,0.03340446,67858.0,67857.0,0.149868]
[1730645432135,0.03340446,67858.0,67857.0,0.15081501]
[1730645432347,0.03540446,67858.0,67857.0,0.147868]
[1730645432580,0.03540446,67858.0,67857.0,0.001]
[1730645432745,0.147375,67854.0,67853.0,0.0005]
[1730645432960,0.294737,67857.0,67847.0,0.14739]
[1730645432961,0.147375,67855.0,67852.0,0.0005]
[1730645433163,0.294737,67857.0,67852.0,0.0005]
[1730645433574,0.0756,67863.0,67849.0,0.0005]
[1730645433782,0.0756,67863.0,67832.0,0.005]
[1730645433783,0.22159028,67856.0,67840.0,0.22209028]
[1730645433954,0.045,67860.0,67840.0,0.22209028]
[1730645433955,0.294774,67849.0,67848.0,0.22159028]
[1730645434139,0.1474,67843.0,67840.0,0.22209028]
[1730645434652,0.1474,67843.0,67840.0,0.0005]
[1730645434857,0.1474,67843.0,67835.0,0.299832]
[1730645434858,0.147383,67850.0,67844.0,0.0005]
[1730645435050,0.147383,67850.0,67831.0,0.000817]
[1730645435051,0.26937614,67850.0,67840.0,0.0005]
[1730645435226,0.147403,67841.0,67840.0,0.0005]
[1730645435424,0.147403,67841.0,67840.0,0.0025]
[1730645435930,0.147403,67841.0,67840.0,0.0005]
[1730645436318,0.148403,67841.0,67840.0,0.0005]
[1730645437302,0.19107892,67841.0,67840.0,0.0005]
[1730645437430,0.04367592,67841.0,67840.0,0.0005]
[1730645437634,0.04267592,67841.0,67840.0,0.0005]
[1730645437893,0.04467592,67841.0,67840.0,0.147905]
[1730645438114,0.04467592,67841.0,67840.0,0.25985258]
[1730645438323,0.04467592,67841.0,67840.0,0.50724962]